[Event "Titled Tuesday Blitz February 15 Early 2022"]
[White "Svane, Frederik"]
[Black "Gunina, Valentina"]
[WhiteFideId "12923044"]
[BlackFideId "4167570"]
[WhiteElo "2459"]
[BlackElo "2465"]
[Result "0-1"]
[Round "08"]
[TimeControl "180+1"]
[Date "2022.02.15"]
[WhiteClock "0:00:01"]
[BlackClock "0:00:14"]

1. e4 {[%clk 0:03:00]}  c6 {[%clk 0:03:00]} 2. d4 {[%clk 0:03:00]}  d5 {[%clk 0:03:00]} 3. exd5 {[%clk 0:03:01]}  cxd5 {[%clk 0:03:00]} 4. Nf3 {[%clk 0:03:02]}  Nc6 {[%clk 0:03:00]} 5. c3 {[%clk 0:03:02]}  Bf5 {[%clk 0:02:58]} 6. Bd3 {[%clk 0:02:54]}  Bxd3 {[%clk 0:02:55]} 7. Qxd3 {[%clk 0:02:55]}  e6 {[%clk 0:02:56]} 8. O-O {[%clk 0:02:49]}  Bd6 {[%clk 0:02:56]} 9. Bg5 {[%clk 0:02:41]}  Qc7 {[%clk 0:02:56]} 10. Re1 {[%clk 0:02:35]}  h6 {[%clk 0:02:54]} 11. Bh4 {[%clk 0:02:34]}  Nge7 {[%clk 0:02:54]} 12. Bg3 {[%clk 0:02:32]}  O-O {[%clk 0:02:52]} 13. Nbd2 {[%clk 0:02:31]}  Bxg3 {[%clk 0:02:50]} 14. hxg3 {[%clk 0:02:32]}  Nf5 {[%clk 0:02:49]} 15. g4 {[%clk 0:02:30]}  Nfe7 {[%clk 0:02:49]} 16. g5 {[%clk 0:02:25]}  h5 {[%clk 0:02:43]} 17. g3 {[%clk 0:02:24]}  g6 {[%clk 0:02:43]} 18. Kg2 {[%clk 0:02:11]}  Nf5 {[%clk 0:02:43]} 19. Nf1 {[%clk 0:01:51]}  Kg7 {[%clk 0:02:33]} 20. Ne3 {[%clk 0:01:51]}  Nxe3+ {[%clk 0:02:25]} 21. Qxe3 {[%clk 0:01:52]}  b5 {[%clk 0:02:23]} 22. Rh1 {[%clk 0:01:48]}  b4 {[%clk 0:02:18]} 23. Rh4 {[%clk 0:01:45]}  bxc3 {[%clk 0:02:17]} 24. bxc3 {[%clk 0:01:46]}  Ne7 {[%clk 0:02:16]} 25. g4 {[%clk 0:00:59]}  hxg4 {[%clk 0:02:09]} 26. Rah1 {[%clk 0:00:58]}  Rh8 {[%clk 0:02:02]} 27. Rxh8 {[%clk 0:00:41]}  Rxh8 {[%clk 0:02:00]} 28. Ne5 {[%clk 0:00:41]}  Rxh1 {[%clk 0:01:59]} 29. Kxh1 {[%clk 0:00:42]}  Nf5 {[%clk 0:01:55]} 30. Qd3 {[%clk 0:00:41]}  Qa5 {[%clk 0:01:46]} 31. Qd2 {[%clk 0:00:29]}  g3 {[%clk 0:01:43]} 32. fxg3 {[%clk 0:00:29]}  Nxg3+ {[%clk 0:01:42]} 33. Kg2 {[%clk 0:00:26]}  Ne4 {[%clk 0:01:34]} 34. Qf4 {[%clk 0:00:26]}  Qc7 {[%clk 0:01:34]} 35. c4 {[%clk 0:00:14]}  Qb7 {[%clk 0:01:13]} 36. Kh3 {[%clk 0:00:14]}  dxc4 {[%clk 0:01:10]} 37. Nxc4 {[%clk 0:00:11]}  Nxg5+ {[%clk 0:01:01]} 38. Qxg5 {[%clk 0:00:09]}  Qh1+ {[%clk 0:01:01]} 39. Kg4 {[%clk 0:00:05]}  Qg1+ {[%clk 0:00:57]} 40. Kh4 {[%clk 0:00:03]}  Qh2+ {[%clk 0:00:23]} 41. Kg4 {[%clk 0:00:04]}  Qe2+ {[%clk 0:00:23]} 42. Kg3 {[%clk 0:00:01]}  Qxc4 {[%clk 0:00:23]} 43. Qe5+ {[%clk 0:00:02]}  Kh7 {[%clk 0:00:21]} 44. Qf6 {[%clk 0:00:02]}  Qd3+ {[%clk 0:00:21]} 45. Kg2 {[%clk 0:00:02]}  Qf5 {[%clk 0:00:21]} 46. Qh4+ {[%clk 0:00:02]}  Kg7 {[%clk 0:00:21]} 47. Qg3 {[%clk 0:00:01]}  Qe4+ {[%clk 0:00:20]} 48. Kh3 {[%clk 0:00:01]}  Qxd4 {[%clk 0:00:20]} 49. a4 {[%clk 0:00:01]}  Qxa4 {[%clk 0:00:20]} 50. Qe5+ {[%clk 0:00:01]}  Kh7 {[%clk 0:00:20]} 51. Qf6 {[%clk 0:00:02]}  Qb3+ {[%clk 0:00:20]} 52. Kg2 {[%clk 0:00:03]}  Qc2+ {[%clk 0:00:20]} 53. Kg3 {[%clk 0:00:02]}  Qd3+ {[%clk 0:00:20]} 54. Kh2 {[%clk 0:00:02]}  Kg8 {[%clk 0:00:20]} 55. Kg2 {[%clk 0:00:03]}  Qd5+ {[%clk 0:00:20]} 56. Kg1 {[%clk 0:00:03]}  a5 {[%clk 0:00:20]} 57. Qf2 {[%clk 0:00:03]}  Qf5 {[%clk 0:00:20]} 58. Kh1 {[%clk 0:00:03]}  Kg7 {[%clk 0:00:20]} 59. Qd4+ {[%clk 0:00:03]}  Qf6 {[%clk 0:00:20]} 60. Qf2 {[%clk 0:00:03]}  Qa1+ {[%clk 0:00:20]} 61. Kg2 {[%clk 0:00:03]}  a4 {[%clk 0:00:20]} 62. Kh2 {[%clk 0:00:02]}  a3 {[%clk 0:00:20]} 63. Kg2 {[%clk 0:00:02]}  Qb2 {[%clk 0:00:21]} 64. Kh1 {[%clk 0:00:02]}  Qb1+ {[%clk 0:00:19]} 65. Kg2 {[%clk 0:00:02]}  Qe4+ {[%clk 0:00:18]} 66. Kh2 {[%clk 0:00:02]}  Qc4 {[%clk 0:00:16]} 67. Kg2 {[%clk 0:00:02]}  a2 {[%clk 0:00:16]} 68. Qb2+ {[%clk 0:00:02]}  Kg8 {[%clk 0:00:14]} 69. Qb8+ {[%clk 0:00:01]}  Kh7 {[%clk 0:00:14]} 70. Qe5 {[%clk 0:00:01]}  Qd5+ {[%clk 0:00:14]} 0-1


[Site "https://www.chess.com"]

[Event "Titled Tuesday Blitz February 15 Early 2022"]
[White "Timofeev, Artyom"]
[Black "Garagulya, Konstantin"]
[WhiteFideId "4140419"]
[BlackFideId "4128931"]
[WhiteElo "2583"]
[BlackElo "2329"]
[Result "1-0"]
[Round "08"]
[TimeControl "180+1"]
[Date "2022.02.15"]
[WhiteClock "0:00:15"]
[BlackClock "0:00:01"]

1. d4 {[%clk 0:03:00]}  d5 {[%clk 0:02:54]} 2. c4 {[%clk 0:03:00]}  dxc4 {[%clk 0:02:50]} 3. Nf3 {[%clk 0:02:58]}  Nf6 {[%clk 0:02:50]} 4. e3 {[%clk 0:02:59]}  e6 {[%clk 0:02:50]} 5. Bxc4 {[%clk 0:02:58]}  a6 {[%clk 0:02:51]} 6. O-O {[%clk 0:02:57]}  c5 {[%clk 0:02:52]} 7. b3 {[%clk 0:02:56]}  Nc6 {[%clk 0:02:43]} 8. Bb2 {[%clk 0:02:54]}  cxd4 {[%clk 0:02:42]} 9. Nxd4 {[%clk 0:02:54]}  Nxd4 {[%clk 0:02:43]} 10. Bxd4 {[%clk 0:02:54]}  Be7 {[%clk 0:02:42]} 11. Nd2 {[%clk 0:02:52]}  O-O {[%clk 0:02:42]} 12. Be2 {[%clk 0:02:52]}  Nd5 {[%clk 0:02:37]} 13. Bf3 {[%clk 0:02:42]}  b5 {[%clk 0:02:30]} 14. Ne4 {[%clk 0:02:31]}  Bb7 {[%clk 0:02:30]} 15. Nc5 {[%clk 0:02:28]}  Bc6 {[%clk 0:01:48]} 16. Rc1 {[%clk 0:02:25]}  Qd6 {[%clk 0:01:08]} 17. Qd2 {[%clk 0:02:08]}  Nf6 {[%clk 0:00:45]} 18. Nb7 {[%clk 0:01:54]}  Bxb7 {[%clk 0:00:43]} 19. Bxb7 {[%clk 0:01:54]}  Rab8 {[%clk 0:00:43]} 20. Bf3 {[%clk 0:01:49]}  e5 {[%clk 0:00:30]} 21. Bc3 {[%clk 0:01:46]}  Qxd2 {[%clk 0:00:29]} 22. Bxd2 {[%clk 0:01:46]}  e4 {[%clk 0:00:30]} 23. Be2 {[%clk 0:01:45]}  Rfc8 {[%clk 0:00:23]} 24. a4 {[%clk 0:01:31]}  Rxc1 {[%clk 0:00:14]} 25. Rxc1 {[%clk 0:01:30]}  Nd5 {[%clk 0:00:15]} 26. axb5 {[%clk 0:01:19]}  axb5 {[%clk 0:00:15]} 27. f3 {[%clk 0:01:10]}  f5 {[%clk 0:00:14]} 28. fxe4 {[%clk 0:01:07]}  fxe4 {[%clk 0:00:15]} 29. Bg4 {[%clk 0:01:07]}  Kf7 {[%clk 0:00:15]} 30. Rc6 {[%clk 0:01:06]}  Nf6 {[%clk 0:00:13]} 31. Be6+ {[%clk 0:01:05]}  Kg6 {[%clk 0:00:14]} 32. g4 {[%clk 0:01:01]}  Rd8 {[%clk 0:00:10]} 33. Be1 {[%clk 0:00:54]}  h5 {[%clk 0:00:08]} 34. Bf5+ {[%clk 0:00:52]}  Kh6 {[%clk 0:00:06]} 35. h3 {[%clk 0:00:42]}  Rd1 {[%clk 0:00:06]} 36. Kf2 {[%clk 0:00:42]}  hxg4 {[%clk 0:00:06]} 37. hxg4 {[%clk 0:00:42]}  Kg5 {[%clk 0:00:06]} 38. Ke2 {[%clk 0:00:42]}  Rb1 {[%clk 0:00:07]} 39. Bg3 {[%clk 0:00:39]}  Rb2+ {[%clk 0:00:04]} 40. Kd1 {[%clk 0:00:39]}  Rxb3 {[%clk 0:00:04]} 41. Bf4+ {[%clk 0:00:37]}  Kh4 {[%clk 0:00:04]} 42. Kc2 {[%clk 0:00:25]}  Ra3 {[%clk 0:00:03]} 43. Re6 {[%clk 0:00:23]}  Bf8 {[%clk 0:00:01]} 44. g5 {[%clk 0:00:15]} 1-0


[Site "https://www.chess.com"]

[Event "Titled Tuesday Blitz February 15 Early 2022"]
[White "Toncheva, Nadya"]
[Black "Domingo Nunez, Alejandro"]
[WhiteFideId "2924056"]
[BlackFideId "22245561"]
[WhiteElo "1920"]
[BlackElo "2215"]
[Result "0-1"]
[Round "08"]
[TimeControl "180+1"]
[Date "2022.02.15"]
[WhiteClock "0:00:16"]
[BlackClock "0:00:17"]

1. e4 {[%clk 0:03:00]}  g6 {[%clk 0:02:53]} 2. d4 {[%clk 0:03:00]}  Bg7 {[%clk 0:02:51]} 3. c4 {[%clk 0:03:00]}  d6 {[%clk 0:02:50]} 4. Nc3 {[%clk 0:03:01]}  Nd7 {[%clk 0:02:50]} 5. Be2 {[%clk 0:03:01]}  e5 {[%clk 0:02:28]} 6. d5 {[%clk 0:03:00]}  a5 {[%clk 0:02:28]} 7. Bd3 {[%clk 0:02:59]}  h5 {[%clk 0:02:27]} 8. Nge2 {[%clk 0:02:59]}  h4 {[%clk 0:02:27]} 9. h3 {[%clk 0:02:58]}  Nc5 {[%clk 0:02:28]} 10. Bc2 {[%clk 0:02:58]}  Bh6 {[%clk 0:02:27]} 11. Bxh6 {[%clk 0:02:56]}  Nxh6 {[%clk 0:02:28]} 12. Qd2 {[%clk 0:02:54]}  Bd7 {[%clk 0:02:28]} 13. O-O-O {[%clk 0:02:53]}  Ng8 {[%clk 0:02:27]} 14. Kb1 {[%clk 0:02:52]}  Qe7 {[%clk 0:02:26]} 15. Nc1 {[%clk 0:02:46]}  Nf6 {[%clk 0:02:20]} 16. f3 {[%clk 0:02:44]}  Nh5 {[%clk 0:02:20]} 17. Nd3 {[%clk 0:02:42]}  Nxd3 {[%clk 0:02:03]} 18. Bxd3 {[%clk 0:02:43]}  Nf4 {[%clk 0:02:04]} 19. Bc2 {[%clk 0:02:40]}  Qg5 {[%clk 0:02:02]} 20. Rhg1 {[%clk 0:02:39]}  O-O {[%clk 0:01:59]} 21. Ne2 {[%clk 0:02:38]}  Kg7 {[%clk 0:01:52]} 22. Nxf4 {[%clk 0:02:37]}  Qxf4 {[%clk 0:01:53]} 23. Qf2 {[%clk 0:02:29]}  Rfd8 {[%clk 0:01:48]} 24. g3 {[%clk 0:02:23]}  hxg3 {[%clk 0:01:49]} 25. Rxg3 {[%clk 0:02:23]}  Rh8 {[%clk 0:01:49]} 26. Qg2 {[%clk 0:02:19]}  Rh6 {[%clk 0:01:45]} 27. Rh1 {[%clk 0:02:04]}  Rah8 {[%clk 0:01:45]} 28. a3 {[%clk 0:01:57]}  c6 {[%clk 0:01:36]} 29. Bd3 {[%clk 0:01:53]}  cxd5 {[%clk 0:01:35]} 30. cxd5 {[%clk 0:01:54]}  Qe3 {[%clk 0:01:30]} 31. Bc2 {[%clk 0:01:43]}  b5 {[%clk 0:01:21]} 32. f4 {[%clk 0:01:32]}  Qxf4 {[%clk 0:01:21]} 33. Rf1 {[%clk 0:01:29]}  Qh4 {[%clk 0:01:18]} 34. Qf2 {[%clk 0:00:59]}  Qe7 {[%clk 0:01:02]} 35. Rf3 {[%clk 0:00:53]}  Rf8 {[%clk 0:00:59]} 36. Bd3 {[%clk 0:00:47]}  b4 {[%clk 0:00:44]} 37. axb4 {[%clk 0:00:39]}  axb4 {[%clk 0:00:45]} 38. Qb6 {[%clk 0:00:38]}  Bxh3 {[%clk 0:00:43]} 39. Rh1 {[%clk 0:00:36]}  Rfh8 {[%clk 0:00:31]} 40. Qxb4 {[%clk 0:00:31]}  Bg2 {[%clk 0:00:30]} 41. Rxh6 {[%clk 0:00:31]}  Rxh6 {[%clk 0:00:30]} 42. Rg3 {[%clk 0:00:29]}  Rh1+ {[%clk 0:00:30]} 43. Ka2 {[%clk 0:00:28]}  Qa7+ {[%clk 0:00:26]} 44. Qa3 {[%clk 0:00:28]}  Qf2 {[%clk 0:00:26]} 45. Bb5 {[%clk 0:00:21]}  Bxe4 {[%clk 0:00:22]} 46. Qc3 {[%clk 0:00:18]}  Bxd5+ {[%clk 0:00:19]} 47. Ka3 {[%clk 0:00:15]}  Ra1+ {[%clk 0:00:17]} 48. Kb4 {[%clk 0:00:16]}  Qf4+ {[%clk 0:00:17]} 49. Bc4 {[%clk 0:00:16]}  Bxc4 {[%clk 0:00:17]} 0-1


[Site "https://www.chess.com"]

[Event "Titled Tuesday Blitz February 15 Early 2022"]
[White "Urazayev, Arystanbek"]
[Black "Bortnyk, Olexandr"]
[WhiteFideId "13709810"]
[BlackFideId "14120828"]
[WhiteElo "2321"]
[BlackElo "2723"]
[Result "0-1"]
[Round "08"]
[TimeControl "180+1"]
[Date "2022.02.15"]
[WhiteClock "0:00:18"]
[BlackClock "0:01:10"]

1. d4 {[%clk 0:03:00]}  f5 {[%clk 0:02:57]} 2. e4 {[%clk 0:02:59]}  fxe4 {[%clk 0:02:57]} 3. Nc3 {[%clk 0:03:00]}  Nf6 {[%clk 0:02:58]} 4. Bg5 {[%clk 0:03:01]}  Nc6 {[%clk 0:02:58]} 5. d5 {[%clk 0:02:57]}  Ne5 {[%clk 0:02:59]} 6. Qd4 {[%clk 0:02:56]}  Nf7 {[%clk 0:02:59]} 7. h4 {[%clk 0:02:46]}  c6 {[%clk 0:02:56]} 8. O-O-O {[%clk 0:02:36]}  Qb6 {[%clk 0:02:54]} 9. Bxf6 {[%clk 0:02:30]}  gxf6 {[%clk 0:02:55]} 10. Qxe4 {[%clk 0:02:25]}  Qxf2 {[%clk 0:02:54]} 11. dxc6 {[%clk 0:02:05]}  bxc6 {[%clk 0:02:53]} 12. Bc4 {[%clk 0:02:02]}  Bh6+ {[%clk 0:02:44]} 13. Kb1 {[%clk 0:02:02]}  Qe3 {[%clk 0:02:45]} 14. Bxf7+ {[%clk 0:01:50]}  Kxf7 {[%clk 0:02:46]} 15. Qc4+ {[%clk 0:01:50]}  Qe6 {[%clk 0:02:30]} 16. Qc5 {[%clk 0:01:47]}  Qe5 {[%clk 0:02:18]} 17. Qc4+ {[%clk 0:01:41]}  Qe6 {[%clk 0:02:08]} 18. Qc5 {[%clk 0:01:42]}  d5 {[%clk 0:02:09]} 19. Nf3 {[%clk 0:01:32]}  Qd6 {[%clk 0:02:09]} 20. Qf2 {[%clk 0:01:31]}  Rb8 {[%clk 0:02:06]} 21. b3 {[%clk 0:01:14]}  Bg4 {[%clk 0:02:06]} 22. Rd4 {[%clk 0:01:06]}  Bxf3 {[%clk 0:01:59]} 23. Qxf3 {[%clk 0:01:06]}  Qe5 {[%clk 0:01:56]} 24. Ra4 {[%clk 0:00:56]}  Rhg8 {[%clk 0:01:53]} 25. g4 {[%clk 0:00:49]}  Qe3 {[%clk 0:01:46]} 26. Rf1 {[%clk 0:00:40]}  d4 {[%clk 0:01:32]} 27. Ne2 {[%clk 0:00:20]}  Qxf3 {[%clk 0:01:32]} 28. Rxf3 {[%clk 0:00:21]}  Rxg4 {[%clk 0:01:30]} 29. Rxd4 {[%clk 0:00:20]}  Rbg8 {[%clk 0:01:23]} 30. Kb2 {[%clk 0:00:19]}  c5 {[%clk 0:01:17]} 31. Rd7 {[%clk 0:00:19]}  Rxh4 {[%clk 0:01:16]} 32. Rxa7 {[%clk 0:00:19]}  Rg2 {[%clk 0:01:11]} 33. Nf4 {[%clk 0:00:18]}  Bxf4 {[%clk 0:01:10]} 0-1


[Site "https://www.chess.com"]

[Event "Titled Tuesday Blitz February 15 Early 2022"]
[White "Van den Dikkenberg, Erik"]
[Black "Martin, Lewis"]
[WhiteFideId "1005880"]
[BlackFideId "410551"]
[WhiteElo "2118"]
[BlackElo "2145"]
[Result "0-1"]
[Round "08"]
[TimeControl "180+1"]
[Date "2022.02.15"]
[WhiteClock "0:00:16"]
[BlackClock "0:01:25"]

1. e4 {[%clk 0:03:00]}  c5 {[%clk 0:02:59]} 2. Nc3 {[%clk 0:02:57]}  Nc6 {[%clk 0:02:59]} 3. f4 {[%clk 0:02:58]}  g6 {[%clk 0:02:58]} 4. Nf3 {[%clk 0:02:58]}  Bg7 {[%clk 0:02:58]} 5. Bc4 {[%clk 0:02:59]}  e6 {[%clk 0:02:58]} 6. O-O {[%clk 0:02:59]}  Nge7 {[%clk 0:02:59]} 7. d3 {[%clk 0:02:59]}  O-O {[%clk 0:02:58]} 8. Kh1 {[%clk 0:02:59]}  d5 {[%clk 0:02:56]} 9. Bb3 {[%clk 0:02:58]}  b5 {[%clk 0:02:55]} 10. Nxb5 {[%clk 0:02:49]}  Rb8 {[%clk 0:02:53]} 11. Nc3 {[%clk 0:02:45]}  Ba6 {[%clk 0:02:49]} 12. a4 {[%clk 0:02:17]}  c4 {[%clk 0:02:36]} 13. Ba2 {[%clk 0:02:11]}  cxd3 {[%clk 0:02:28]} 14. cxd3 {[%clk 0:02:11]}  Bxc3 {[%clk 0:02:26]} 15. bxc3 {[%clk 0:02:10]}  dxe4 {[%clk 0:02:26]} 16. dxe4 {[%clk 0:02:06]}  Bxf1 {[%clk 0:02:25]} 17. Qxf1 {[%clk 0:02:06]}  Qa5 {[%clk 0:02:18]} 18. f5 {[%clk 0:01:54]}  exf5 {[%clk 0:02:14]} 19. Bh6 {[%clk 0:01:52]}  Rfd8 {[%clk 0:02:11]} 20. Ng5 {[%clk 0:01:38]}  Ne5 {[%clk 0:02:09]} 21. Nxf7 {[%clk 0:01:19]}  Nxf7 {[%clk 0:02:08]} 22. Qc4 {[%clk 0:01:19]}  Rf8 {[%clk 0:02:00]} 23. Bxf8 {[%clk 0:01:17]}  Rxf8 {[%clk 0:02:01]} 24. Rf1 {[%clk 0:01:04]}  Kg7 {[%clk 0:01:51]} 25. exf5 {[%clk 0:00:51]}  Nxf5 {[%clk 0:01:51]} 26. Qe6 {[%clk 0:00:49]}  Qxc3 {[%clk 0:01:43]} 27. g4 {[%clk 0:00:44]}  Qh3 {[%clk 0:01:28]} 28. Rxf5 {[%clk 0:00:16]}  gxf5 {[%clk 0:01:26]} 29. gxf5 {[%clk 0:00:16]}  Qf1# {[%clk 0:01:25]} 0-1


[Site "https://www.chess.com"]

[Event "Titled Tuesday Blitz February 15 Early 2022"]
[White "Visakh N R"]
[Black "Borisova, Ekaterina"]
[WhiteFideId "25012223"]
[BlackFideId "34124184"]
[WhiteElo "2776"]
[BlackElo "2564"]
[Result "1-0"]
[Round "08"]
[TimeControl "180+1"]
[Date "2022.02.15"]
[WhiteClock "0:00:54"]
[BlackClock "0:00:01"]

1. e4 {[%clk 0:03:00]}  c6 {[%clk 0:03:00]} 2. d4 {[%clk 0:03:00]}  d5 {[%clk 0:03:00]} 3. Nd2 {[%clk 0:03:01]}  dxe4 {[%clk 0:03:00]} 4. Nxe4 {[%clk 0:03:02]}  Bf5 {[%clk 0:03:00]} 5. Ng3 {[%clk 0:03:02]}  Bg6 {[%clk 0:03:01]} 6. Nf3 {[%clk 0:03:03]}  Nd7 {[%clk 0:03:01]} 7. Bd3 {[%clk 0:03:04]}  Ngf6 {[%clk 0:03:00]} 8. O-O {[%clk 0:03:04]}  e6 {[%clk 0:03:00]} 9. Re1 {[%clk 0:03:04]}  Bd6 {[%clk 0:02:53]} 10. Nf5 {[%clk 0:03:04]}  Bxf5 {[%clk 0:02:39]} 11. Bxf5 {[%clk 0:03:05]}  O-O {[%clk 0:02:38]} 12. Bd3 {[%clk 0:03:05]}  c5 {[%clk 0:02:38]} 13. c3 {[%clk 0:03:02]}  cxd4 {[%clk 0:02:36]} 14. Nxd4 {[%clk 0:03:02]}  Ne5 {[%clk 0:01:54]} 15. Bc2 {[%clk 0:02:58]}  Ng6 {[%clk 0:01:52]} 16. g3 {[%clk 0:02:54]}  Qb6 {[%clk 0:01:48]} 17. Rb1 {[%clk 0:02:51]}  Rad8 {[%clk 0:01:41]} 18. Be3 {[%clk 0:02:50]}  Qa5 {[%clk 0:01:23]} 19. a4 {[%clk 0:02:43]}  Nd5 {[%clk 0:01:19]} 20. Bd2 {[%clk 0:02:42]}  Qc5 {[%clk 0:01:06]} 21. Qe2 {[%clk 0:02:41]}  Rfe8 {[%clk 0:00:55]} 22. b4 {[%clk 0:02:40]}  Qc8 {[%clk 0:00:47]} 23. Nb5 {[%clk 0:02:36]}  Bb8 {[%clk 0:00:45]} 24. c4 {[%clk 0:02:36]}  a6 {[%clk 0:00:17]} 25. Nc3 {[%clk 0:02:32]}  Nf6 {[%clk 0:00:16]} 26. c5 {[%clk 0:02:23]}  a5 {[%clk 0:00:11]} 27. Nb5 {[%clk 0:02:08]}  axb4 {[%clk 0:00:09]} 28. Bxb4 {[%clk 0:02:09]}  Nd5 {[%clk 0:00:08]} 29. Ba3 {[%clk 0:02:04]}  e5 {[%clk 0:00:07]} 30. Be4 {[%clk 0:02:00]}  Qh3 {[%clk 0:00:05]} 31. Qf3 {[%clk 0:01:56]}  Nf6 {[%clk 0:00:03]} 32. Bxb7 {[%clk 0:01:53]}  e4 {[%clk 0:00:04]} 33. Qg2 {[%clk 0:01:45]}  Qg4 {[%clk 0:00:04]} 34. Bb2 {[%clk 0:01:32]}  Rd2 {[%clk 0:00:03]} 35. Bxf6 {[%clk 0:01:30]}  gxf6 {[%clk 0:00:04]} 36. Bxe4 {[%clk 0:01:30]}  f5 {[%clk 0:00:03]} 37. Bf3 {[%clk 0:01:27]}  Rxe1+ {[%clk 0:00:03]} 38. Rxe1 {[%clk 0:01:28]}  Qxa4 {[%clk 0:00:04]} 39. Re8+ {[%clk 0:01:26]}  Kg7 {[%clk 0:00:04]} 40. Rxb8 {[%clk 0:01:27]}  Ne5 {[%clk 0:00:02]} 41. Bh5 {[%clk 0:01:09]}  Qa1+ {[%clk 0:00:02]} 42. Qf1 {[%clk 0:01:09]}  Qb2 {[%clk 0:00:03]} 43. Rb7 {[%clk 0:01:05]}  Kh6 {[%clk 0:00:02]} 44. Nd6 {[%clk 0:01:02]}  Qc2 {[%clk 0:00:02]} 45. Qh3 {[%clk 0:00:56]}  Qc1+ {[%clk 0:00:02]} 46. Bd1+ {[%clk 0:00:55]}  Kg5 {[%clk 0:00:01]} 47. Qxf5+ {[%clk 0:00:54]} 1-0


[Site "https://www.chess.com"]

[Event "Titled Tuesday Blitz February 15 Early 2022"]
[White "Vivas Zamora, Fabian Ernesto"]
[Black "Sahil, Tickoo"]
[WhiteFideId "3902480"]
[BlackFideId "5019710"]
[WhiteElo "1966"]
[BlackElo "2099"]
[Result "0-1"]
[Round "08"]
[TimeControl "180+1"]
[Date "2022.02.15"]
[WhiteClock "0:00:06"]
[BlackClock "0:00:22"]

1. c4 {[%clk 0:03:00]}  e6 {[%clk 0:02:56]} 2. Nf3 {[%clk 0:02:59]}  d5 {[%clk 0:02:56]} 3. b3 {[%clk 0:03:00]}  Nf6 {[%clk 0:02:56]} 4. Bb2 {[%clk 0:03:00]}  Be7 {[%clk 0:02:55]} 5. g3 {[%clk 0:03:00]}  O-O {[%clk 0:02:55]} 6. Bg2 {[%clk 0:03:01]}  c5 {[%clk 0:02:55]} 7. O-O {[%clk 0:03:01]}  Nc6 {[%clk 0:02:53]} 8. cxd5 {[%clk 0:02:59]}  Nxd5 {[%clk 0:02:53]} 9. d4 {[%clk 0:02:56]}  Nf6 {[%clk 0:02:33]} 10. Na3 {[%clk 0:02:27]}  Bd7 {[%clk 0:02:25]} 11. Rc1 {[%clk 0:02:21]}  b6 {[%clk 0:01:49]} 12. Ne5 {[%clk 0:02:02]}  Rc8 {[%clk 0:01:41]} 13. Nxc6 {[%clk 0:01:22]}  Bxc6 {[%clk 0:01:38]} 14. Bxc6 {[%clk 0:01:22]}  Rxc6 {[%clk 0:01:36]} 15. dxc5 {[%clk 0:01:22]}  Rxc5 {[%clk 0:01:28]} 16. Rxc5 {[%clk 0:01:04]}  Bxc5 {[%clk 0:01:25]} 17. Nc4 {[%clk 0:00:18]}  Qe7 {[%clk 0:00:41]} 18. Qa1 {[%clk 0:00:16]}  Rd8 {[%clk 0:00:37]} 19. Bxf6 {[%clk 0:00:14]}  Qxf6 {[%clk 0:00:37]} 20. Qxf6 {[%clk 0:00:12]}  gxf6 {[%clk 0:00:38]} 21. Rc1 {[%clk 0:00:11]}  Kg7 {[%clk 0:00:33]} 22. Rc2 {[%clk 0:00:10]}  Rd1+ {[%clk 0:00:32]} 23. Kg2 {[%clk 0:00:10]}  f5 {[%clk 0:00:33]} 24. Rd2 {[%clk 0:00:09]}  Ra1 {[%clk 0:00:32]} 25. Kf3 {[%clk 0:00:08]}  Kf6 {[%clk 0:00:31]} 26. Ne3 {[%clk 0:00:03]}  Bxe3 {[%clk 0:00:30]} 27. Kxe3 {[%clk 0:00:03]}  h5 {[%clk 0:00:30]} 28. Kf3 {[%clk 0:00:04]}  a5 {[%clk 0:00:27]} 29. h3 {[%clk 0:00:04]}  b5 {[%clk 0:00:27]} 30. h4 {[%clk 0:00:04]}  b4 {[%clk 0:00:26]} 31. Ke3 {[%clk 0:00:03]}  Ke5 {[%clk 0:00:25]} 32. Kf3 {[%clk 0:00:03]}  Kf6 {[%clk 0:00:24]} 33. Rc2 {[%clk 0:00:03]}  Ke7 {[%clk 0:00:21]} 34. Rc7+ {[%clk 0:00:02]}  Kd6 {[%clk 0:00:21]} 35. Rxf7 {[%clk 0:00:01]}  Rxa2 {[%clk 0:00:21]} 36. Ra7 {[%clk 0:00:02]}  Kd5 {[%clk 0:00:20]} 37. Kf4 {[%clk 0:00:02]}  Kd4 {[%clk 0:00:18]} 38. e3+ {[%clk 0:00:01]}  Kc3 {[%clk 0:00:18]} 39. f3 {[%clk 0:00:02]}  Kxb3 {[%clk 0:00:19]} 40. Kg5 {[%clk 0:00:02]}  a4 {[%clk 0:00:18]} 41. Kxh5 {[%clk 0:00:02]}  Rg2 {[%clk 0:00:19]} 42. g4 {[%clk 0:00:03]}  fxg4 {[%clk 0:00:19]} 43. fxg4 {[%clk 0:00:04]}  a3 {[%clk 0:00:20]} 44. g5 {[%clk 0:00:05]}  a2 {[%clk 0:00:20]} 45. g6 {[%clk 0:00:05]}  Kb2 {[%clk 0:00:21]} 46. Kh6 {[%clk 0:00:05]}  a1=Q {[%clk 0:00:21]} 47. Rxa1 {[%clk 0:00:05]}  Kxa1 {[%clk 0:00:22]} 48. g7 {[%clk 0:00:06]}  b3 {[%clk 0:00:22]} 0-1


[Site "https://www.chess.com"]

[Event "Titled Tuesday Blitz February 15 Early 2022"]
[White "Vlassov, Nikolai"]
[Black "Faizrakhmanov, Ramil"]
[WhiteFideId "4103360"]
[BlackFideId "24103209"]
[WhiteElo "2407"]
[BlackElo "2502"]
[Result "1-0"]
[Round "08"]
[TimeControl "180+1"]
[Date "2022.02.15"]
[WhiteClock "0:01:25"]
[BlackClock "0:00:02"]

1. e4 {[%clk 0:03:00]}  c5 {[%clk 0:02:59]} 2. c3 {[%clk 0:03:00]}  Nf6 {[%clk 0:02:56]} 3. e5 {[%clk 0:03:00]}  Nd5 {[%clk 0:02:56]} 4. d4 {[%clk 0:03:00]}  cxd4 {[%clk 0:02:57]} 5. cxd4 {[%clk 0:03:01]}  d6 {[%clk 0:02:56]} 6. Bc4 {[%clk 0:03:01]}  Nb6 {[%clk 0:02:51]} 7. Bb3 {[%clk 0:03:01]}  dxe5 {[%clk 0:02:47]} 8. Qh5 {[%clk 0:03:00]}  e6 {[%clk 0:02:42]} 9. dxe5 {[%clk 0:03:00]}  g6 {[%clk 0:02:38]} 10. Qg5 {[%clk 0:03:00]}  Qxg5 {[%clk 0:02:34]} 11. Bxg5 {[%clk 0:02:59]}  Bg7 {[%clk 0:02:34]} 12. f4 {[%clk 0:02:54]}  O-O {[%clk 0:02:34]} 13. Nf3 {[%clk 0:02:54]}  Nc6 {[%clk 0:02:34]} 14. Nc3 {[%clk 0:02:54]}  h6 {[%clk 0:02:26]} 15. Bf6 {[%clk 0:02:49]}  Bxf6 {[%clk 0:02:15]} 16. exf6 {[%clk 0:02:49]}  Nb4 {[%clk 0:02:15]} 17. O-O-O {[%clk 0:02:45]}  Bd7 {[%clk 0:02:04]} 18. Ne5 {[%clk 0:02:45]}  Rfd8 {[%clk 0:01:59]} 19. g4 {[%clk 0:02:39]}  Rac8 {[%clk 0:01:56]} 20. f5 {[%clk 0:02:30]}  gxf5 {[%clk 0:01:45]} 21. gxf5 {[%clk 0:02:30]}  N4d5 {[%clk 0:01:39]} 22. Rhg1+ {[%clk 0:02:26]}  Kf8 {[%clk 0:01:36]} 23. Rg7 {[%clk 0:02:25]}  Be8 {[%clk 0:01:35]} 24. Ng6+ {[%clk 0:01:49]}  fxg6 {[%clk 0:01:30]} 25. fxe6 {[%clk 0:01:50]}  Nxf6 {[%clk 0:00:51]} 26. e7+ {[%clk 0:01:47]}  Kxg7 {[%clk 0:00:51]} 27. exd8=Q {[%clk 0:01:47]}  Rxd8 {[%clk 0:00:51]} 28. Rxd8 {[%clk 0:01:47]}  Bc6 {[%clk 0:00:47]} 29. a4 {[%clk 0:01:41]}  g5 {[%clk 0:00:36]} 30. a5 {[%clk 0:01:39]}  Nbd7 {[%clk 0:00:36]} 31. Ba4 {[%clk 0:01:31]}  Bxa4 {[%clk 0:00:28]} 32. Nxa4 {[%clk 0:01:31]}  h5 {[%clk 0:00:16]} 33. b4 {[%clk 0:01:31]}  g4 {[%clk 0:00:15]} 34. Kd1 {[%clk 0:01:27]}  h4 {[%clk 0:00:12]} 35. Ke2 {[%clk 0:01:28]}  Kg6 {[%clk 0:00:03]} 36. b5 {[%clk 0:01:27]}  Kf5 {[%clk 0:00:02]} 37. a6 {[%clk 0:01:26]}  bxa6 {[%clk 0:00:02]} 38. bxa6 {[%clk 0:01:26]}  Nb6 {[%clk 0:00:02]} 39. Nxb6 {[%clk 0:01:25]} 1-0


[Site "https://www.chess.com"]